bitfinex-derivatives/quotes_BTCF0:USTF0_20250127
["timestamp","ask_amount","ask_price","bid_price","bid_amount"]
[1737961381896,0.3608,99126.0,99125.0,1.691876]
[1737961382093,0.3608,99126.0,99125.0,1.49]
[1737961382289,0.201881,99123.0,99121.0,0.14012]
[1737961382490,0.2899,99122.0,99108.0,0.201909]
[1737961382690,0.3608,99111.0,99105.0,0.002]
[1737961382899,0.3608,99111.0,99105.0,0.00115133]
[1737961383288,0.3608,99111.0,99105.0,0.03513575]
[1737961383702,0.3608,99113.0,99110.0,0.201906]
[1737961383903,0.3608,99113.0,99105.0,0.03513575]
[1737961384100,0.3608,99113.0,99111.0,0.201904]
[1737961384895,0.2945,99128.0,99127.0,0.201872]
[1737961385597,0.3608,99131.0,99130.0,0.201866]
[1737961385804,0.3608,99156.0,99130.0,0.201866]
[1737961386005,0.3608,99156.0,99155.0,0.201815]
[1737961386309,0.32851822,99156.0,99149.0,0.13972]
[1737961386604,0.32851822,99156.0,99135.0,0.0015132]
[1737961386801,0.201854,99136.0,99135.0,0.0015132]
[1737961387104,0.18331984,99136.0,99135.0,0.0015132]
[1737961387697,0.18331984,99136.0,99135.0,0.0035132]
[1737961387905,0.20187,99128.0,99127.0,0.001]
[1737961388098,0.050468,99127.0,99091.0,1.49]
[1737961388310,0.3608,99100.0,99091.0,1.49]
[1737961388513,0.3608,99100.0,99097.0,0.201933]
[1737961388804,0.3608,99100.0,99091.0,1.49]
[1737961389009,0.562728,99100.0,99091.0,1.52455755]
[1737961389210,0.562728,99100.0,99093.0,0.201941]
[1737961389409,0.3608,99100.0,99099.0,0.201929]
[1737961390000,0.00015133,99105.0,99091.0,1.52455755]
[1737961390206,0.2987,99127.0,99091.0,1.52455755]
[1737961390207,0.6595,99127.0,99100.0,0.050481]
[1737961390407,0.6595,99127.0,99092.0,0.050485]
[1737961390408,0.3608,99127.0,99117.0,0.24534525]
[1737961390710,0.3608,99127.0,99126.0,0.201874]
[1737961391710,0.3608,99152.0,99121.0,0.50064]
[1737961391905,0.3608,99152.0,99151.0,0.201823]
[1737961392106,0.34834218,99152.0,99151.0,0.201823]
[1737961392503,0.34834218,99152.0,99151.0,1.691823]
[1737961393117,0.3608,99163.0,99151.0,1.49]
[1737961393300,0.3608,99163.0,99158.0,0.201807]
[1737961393498,0.3608,99163.0,99151.0,1.49056]
[1737961393704,0.201809,99158.0,99151.0,1.49]
[1737961394010,0.001,99152.0,99145.0,0.201834]
[1737961394316,0.001,99152.0,99149.0,0.201827]
[1737961394502,0.3608,99154.0,99143.0,1.49]
[1737961394814,0.3608,99154.0,99152.0,0.20182]
[1737961395007,0.3608,99153.0,99152.0,0.20182]
[1737961395710,0.3608,99153.0,99152.0,1.69182]
[1737961395903,0.3608,99174.0,99152.0,1.49]
[1737961396103,0.64256001,99189.0,99183.0,0.201758]
[1737961396304,0.64256001,99189.0,99177.0,0.201768]
[1737961396500,0.3608,99178.0,99164.0,0.13964]
[1737961396706,0.3608,99178.0,99166.0,0.00015123]
[1737961397115,0.3608,99178.0,99177.0,0.20177]
[1737961397312,0.3608,99198.0,99177.0,0.3608]
[1737961397618,0.3608,99198.0,99189.0,0.201745]
[1737961397815,0.3608,99190.0,99170.0,0.19487325]
[1737961398015,0.3608,99182.0,99174.0,0.201775]
[1737961398219,0.201762,99181.0,99169.0,0.20329743]
[1737961398518,0.3608,99171.0,99169.0,0.00151243]
[1737961398711,0.3608,99171.0,99169.0,0.20329843]
[1737961399709,0.01645,99172.0,99171.0,0.201782]
[1737961400317,0.01645,99172.0,99171.0,1.691782]
[1737961400917,0.01745,99172.0,99171.0,1.691782]
[1737961401610,0.02045,99172.0,99171.0,1.691782]
[1737961401812,0.02045,99172.0,99171.0,1.991782]
[1737961402915,0.02045,99172.0,99171.0,0.201782]
[1737961406225,0.02045,99172.0,99171.0,0.338182]
[1737961408117,0.02045,99172.0,99171.0,1.828182]
[1737961409823,0.004,99172.0,99171.0,1.828182]
[1737961410622,0.004,99172.0,99171.0,1.691782]
[1737961411030,0.004,99172.0,99140.0,0.19487325]
[1737961411229,0.3608,99141.0,99140.0,0.39671925]
[1737961411630,0.33868846,99150.0,99149.0,0.201827]
[1737961411826,0.3608,99168.0,99167.0,0.201791]
[1737961412136,0.30680564,99168.0,99167.0,0.336671]
[1737961412633,0.01647,99169.0,99167.0,0.336671]
[1737961413031,0.00015091,99177.0,99168.0,0.56]
[1737961413236,0.3608,99221.0,99175.0,0.3608]
[1737961413434,0.15365757,99207.0,99198.0,0.36049073]
[1737961413638,0.31993293,99252.0,99206.0,0.3608]
[1737961413827,0.201629,99247.0,99229.0,0.201664]
[1737961414022,0.3012,99251.0,99229.0,0.201664]
[1737961414228,0.3012,99251.0,99229.0,0.761664]
[1737961414539,0.31993293,99252.0,99229.0,0.761664]
[1737961415230,0.31993293,99252.0,99229.0,0.762664]
[1737961415231,0.22314433,99230.0,99229.0,0.762664]
[1737961415739,0.009,99230.0,99229.0,0.762664]
[1737961416332,0.08336207,99242.0,99241.0,0.20164]
[1737961417133,0.08336207,99242.0,99233.0,0.3608]
[1737961417530,0.28700007,99242.0,99241.0,0.001]
[1737961417727,0.08536207,99242.0,99241.0,0.001]
[1737961418235,0.44616207,99242.0,99241.0,0.001]
[1737961418435,0.44616207,99242.0,99220.0,0.00015123]
[1737961418641,0.3608,99228.0,99220.0,0.00015123]
[1737961418833,0.2801,99241.0,99220.0,0.00015123]
[1737961419138,0.3608,99231.0,99220.0,0.00015123]
[1737961419732,0.3608,99231.0,99221.0,0.201681]
[1737961420043,0.3608,99231.0,99220.0,0.19602448]
[1737961420232,0.3608,99231.0,99220.0,0.00115123]
[1737961420544,0.3608,99231.0,99227.0,0.201667]
[1737961420737,0.3608,99231.0,99229.0,0.201663]
[1737961420934,0.3608,99231.0,99220.0,0.19602448]
[1737961420935,0.3608,99231.0,99222.0,0.201677]
[1737961421133,0.3608,99231.0,99223.0,0.56]
[1737961421442,0.3608,99231.0,99222.0,0.201677]
[1737961422141,0.3618,99231.0,99220.0,0.00015123]
[1737961422342,0.3618,99231.0,99230.0,0.201662]
[1737961422641,0.3618,99231.0,99220.0,0.00015123]
[1737961423135,0.3608,99231.0,99220.0,0.00015123]
[1737961423341,0.2986,99240.0,99231.0,0.201659]
[1737961423635,0.3608,99232.0,99231.0,0.201659]
[1737961423839,0.2801,99241.0,99220.0,0.55682448]
[1737961424039,0.08388208,99242.0,99241.0,0.20164]
[1737961424237,0.08336207,99242.0,99241.0,0.20164]
[1737961425939,0.14747432,99250.0,99241.0,0.20164]
[1737961425940,0.12531638,99250.0,99241.0,0.20164]
[1737961426243,0.07055027,99250.0,99249.0,0.201624]
[1737961426433,0.03871642,99250.0,99249.0,0.201624]
[1737961427139,0.03871642,99250.0,99249.0,0.22777648]
[1737961428245,0.03871642,99250.0,99249.0,0.78777648]
[1737961428634,0.03079262,99250.0,99249.0,0.78777648]
[1737961429340,0.03279262,99250.0,99249.0,0.78777648]
[1737961431936,0.02218227,99250.0,99249.0,0.78777648]
[1737961434144,0.02218227,99250.0,99236.0,0.20165]
[1737961434346,0.02218227,99250.0,99200.0,0.05043]
[1737961434347,0.3608,99239.0,99221.0,0.00056]
[1737961434537,0.3608,99228.0,99222.0,0.56]
[1737961434736,0.201673,99225.0,99220.0,0.02610723]
[1737961434941,0.201676,99224.0,99220.0,0.02610723]
[1737961435248,0.72212001,99228.0,99220.0,0.02610723]
[1737961435249,0.72212001,99228.0,99220.0,0.00015123]
[1737961435448,0.7216,99228.0,99220.0,0.20183323]
[1737961435651,0.201677,99223.0,99221.0,0.003]
[1737961436538,0.72216001,99228.0,99221.0,0.003]
[1737961436740,0.7216,99228.0,99221.0,0.003]
[1737961437336,0.7216,99228.0,99226.0,0.201669]
[1737961437547,0.2934,99238.0,99237.0,0.201648]
[1737961437952,0.3608,99243.0,99242.0,0.201638]
[1737961438244,0.3608,99243.0,99242.0,0.761638]
[1737961438444,0.3608,99243.0,99242.0,0.56]
[1737961439446,0.3648,99243.0,99242.0,0.56]
[1737961440143,0.3678,99243.0,99242.0,0.56]
[1737961440647,0.201641,99241.0,99219.0,0.13696]
[1737961440955,0.3608,99221.0,99219.0,0.13696]
[1737961441252,0.3608,99221.0,99199.0,0.201724]
[1737961441550,0.3608,99221.0,99210.0,0.56]
[1737961441751,0.3608,99221.0,99180.0,0.3608]
[1737961441752,0.201703,99210.0,99195.0,0.201733]
[1737961441939,0.201703,99210.0,99201.0,0.201721]
[1737961442143,0.201703,99210.0,99196.0,0.201731]
[1737961442149,0.20150306,99210.0,99196.0,0.201731]
[1737961442345,0.20150306,99210.0,99201.0,0.201721]
[1737961442751,0.20150306,99210.0,99209.0,0.10151173]
[1737961443052,0.48500306,99210.0,99209.0,0.00151173]
[1737961443652,0.48500306,99210.0,99209.0,0.00351173]
[1737961444056,0.201721,99201.0,99200.0,0.00015116]
[1737961444261,0.562521,99201.0,99200.0,0.00015116]
[1737961444756,0.562461,99201.0,99200.0,0.00015116]
[1737961445352,0.201738,99193.0,99185.0,0.201753]
[1737961445551,0.3608,99201.0,99178.0,0.201767]
[1737961445552,0.3608,99190.0,99178.0,0.201767]
[1737961445855,0.3608,99190.0,99154.0,0.93606]
[1737961445856,0.3608,99181.0,99171.0,0.02767678]
[1737961446056,0.3608,99172.0,99171.0,0.00151245]
[1737961446653,0.201799,99163.0,99162.0,0.00015124]
[1737961446854,0.562599,99163.0,99162.0,0.00015124]
[1737961447047,0.201817,99154.0,99153.0,0.24077475]
[1737961447252,0.201835,99145.0,99144.0,0.29996726]
[1737961447449,0.3608,99145.0,99144.0,0.29996726]
[1737961448858,0.201852,99137.0,99135.0,0.00015124]
[1737961449054,0.562652,99137.0,99135.0,0.00015124]
[1737961449362,0.562652,99137.0,99098.0,0.201931]
[1737961449363,0.201895,99116.0,99099.0,0.02570032]
[1737961449658,0.3608,99106.0,99099.0,0.02570032]
[1737961449957,0.3608,99106.0,99103.0,0.201919]
[1737961450147,0.3608,99106.0,99104.0,0.201917]
[1737961450554,0.3608,99117.0,99099.0,0.02570032]
[1737961450555,0.00015133,99115.0,99109.0,0.201908]
[1737961451648,0.00015133,99115.0,99112.0,0.201901]
[1737961451955,0.00015133,99115.0,99114.0,0.201899]
[1737961452551,0.00015133,99115.0,99114.0,0.301899]
[1737961452851,0.00115133,99115.0,99114.0,0.301899]
[1737961453051,0.00115133,99115.0,99114.0,0.1]
[1737961453554,0.00115133,99115.0,99114.0,0.101]
[1737961454553,0.00115133,99115.0,99114.0,0.11]
[1737961455859,0.00115133,99115.0,99114.0,0.01]
[1737961456063,0.201915,99106.0,99105.0,0.51081456]
[1737961456358,0.201933,99097.0,99089.0,0.02569343]
[1737961456552,0.201947,99090.0,99072.0,0.1]
[1737961456863,0.3608,99083.0,99072.0,0.1]
[1737961457161,0.3608,99083.0,99074.0,0.02550339]
[1737961457556,0.3608,99083.0,99073.0,0.201982]
[1737961457758,0.3608,99083.0,99073.0,0.00015133]
[1737961458857,0.3618,99083.0,99073.0,0.00015133]
[1737961459064,0.3628,99083.0,99082.0,0.36338132]
[1737961459275,0.3628,99083.0,99082.0,0.56534532]
[1737961459962,0.3628,99083.0,99082.0,0.66534532]
[1737961460359,0.3628,99083.0,99082.0,0.310964]
[1737961460360,0.002,99083.0,99082.0,0.310964]
[1737961461060,0.00015133,99092.0,99091.0,0.201945]
[1737961461255,0.3608,99119.0,99085.0,0.3608]
[1737961461563,0.562675,99126.0,99109.0,0.39678125]
[1737961461763,0.3608,99126.0,99115.0,0.1]
[1737961462161,0.3608,99116.0,99115.0,0.1]
[1737961462672,0.001,99119.0,99115.0,0.1]
[1737961462965,0.3608,99116.0,99106.0,0.14031133]
[1737961463661,0.07062,99119.0,99118.0,0.20189]
[1737961464063,0.00015133,99125.0,99124.0,0.201878]
[1737961464264,0.3608,99151.0,99131.0,0.201862]
[1737961464464,0.3608,99135.0,99124.0,0.1]
[1737961465170,0.36886,99135.0,99124.0,0.1]
[1737961465359,0.00806,99135.0,99124.0,0.1]
[1737961465565,0.00806,99135.0,99134.0,0.201858]
[1737961466480,0.37086,99135.0,99124.0,0.1]
[1737961467060,0.3608,99125.0,99120.0,0.00015133]
[1737961467256,0.562684,99121.0,99120.0,0.00015133]
[1737961468164,0.3608,99121.0,99120.0,0.00015133]
[1737961468674,0.08069,99124.0,99120.0,0.00015133]
[1737961468969,0.201884,99122.0,99120.0,0.00015133]
[1737961469359,0.08069,99124.0,99120.0,0.00015133]
[1737961469560,0.08069,99124.0,99121.0,0.201884]
[1737961469771,0.201881,99123.0,99120.0,0.00015133]
[1737961469962,0.08069,99124.0,99120.0,0.00015133]
[1737961470164,0.12104,99124.0,99120.0,0.00015133]
[1737961470366,0.322919,99124.0,99120.0,0.00015133]
[1737961470564,0.12104,99124.0,99120.0,0.00015133]
[1737961470771,0.12104,99124.0,99122.0,0.201881]
[1737961472171,0.12204,99124.0,99120.0,0.00015133]
[1737961472664,0.562683,99122.0,99120.0,0.00015133]
[1737961472870,0.562683,99122.0,99097.0,0.02564486]
[1737961472871,0.3608,99122.0,99097.0,0.02564486]
[1737961473060,0.201943,99093.0,99091.0,0.3051]
[1737961473259,0.201959,99085.0,99075.0,0.02588367]
[1737961473470,0.3608,99080.0,99073.0,0.3051]
[1737961473672,0.3608,99080.0,99073.0,0.507081]
[1737961474056,0.3608,99080.0,99078.0,0.201971]
[1737961474371,0.00807,99082.0,99078.0,0.201971]
[1737961474567,0.00807,99082.0,99081.0,0.201966]
[1737961474864,0.00807,99082.0,99074.0,0.3051]
[1737961475259,0.3608,99077.0,99074.0,0.3051]
[1737961475769,0.001,99080.0,99074.0,0.3051]
[1737961476178,0.00807,99082.0,99080.0,0.201966]
[1737961476370,0.00015133,99086.0,99074.0,0.3151]
[1737961476665,0.3608,99108.0,99083.0,0.3608]
[1737961476867,0.3608,99108.0,99074.0,0.3151]
[1737961476868,0.201902,99113.0,99098.0,0.19487325]
[1737961477166,0.02512322,99117.0,99100.0,0.3608]
[1737961477369,0.02512322,99117.0,99103.0,0.20192]
[1737961477670,0.12104,99124.0,99108.0,0.3608]
[1737961477873,0.00015133,99120.0,99108.0,0.3608]
[1737961478168,0.12104,99124.0,99108.0,0.3608]
[1737961478169,0.12088867,99124.0,99119.0,0.3608]
[1737961478365,0.3608,99148.0,99120.0,0.3049]
[1737961478568,0.3608,99148.0,99129.0,0.3608]
[1737961478769,0.3608,99148.0,99133.0,0.201859]
[1737961479468,0.00015133,99144.0,99133.0,0.201859]
[1737961479671,0.3608,99175.0,99134.0,0.3608]
[1737961479970,0.3608,99175.0,99130.0,0.1]
[1737961479971,0.3608,99175.0,99160.0,0.55567325]
[1737961480361,0.3608,99175.0,99163.0,0.201797]
[1737961480562,0.35919198,99175.0,99163.0,0.201797]
[1737961481168,0.56096698,99175.0,99161.0,0.1]
[1737961481369,0.35919198,99175.0,99161.0,0.1]
[1737961481571,0.201786,99170.0,99160.0,0.3608]
[1737961482361,0.201786,99170.0,99159.0,0.00015133]
[1737961482362,0.36119198,99175.0,99159.0,0.00015133]
[1737961482764,0.002,99170.0,99159.0,0.00015133]
[1737961483163,0.008,99170.0,99159.0,0.00015133]
[1737961483475,0.201803,99161.0,99159.0,0.00015133]
[1737961485368,0.19088158,99161.0,99159.0,0.00015133]
[1737961485668,0.201834,99146.0,99137.0,0.20185]
[1737961485872,0.3608,99148.0,99130.0,0.30005282]
[1737961486071,0.201837,99145.0,99140.0,0.203358]
[1737961486269,0.008,99161.0,99140.0,0.001513]
[1737961486465,0.008,99161.0,99159.0,0.201805]
[1737961486668,0.008,99161.0,99152.0,0.20182]
[1737961486867,0.008,99161.0,99150.0,0.00015133]
[1737961487081,0.3608,99160.0,99150.0,0.20197433]
[1737961487374,0.006,99161.0,99151.0,0.201823]
[1737961487580,0.006,99161.0,99159.0,0.201806]
[1737961488467,0.04839,99162.0,99161.0,0.201803]
[1737961489674,0.05539,99162.0,99161.0,0.202803]
[1737961490179,0.05839,99162.0,99161.0,0.202803]
[1737961492975,0.05839,99162.0,99161.0,0.001]
[1737961493566,0.05839,99162.0,99161.0,0.302803]
[1737961494072,0.05839,99162.0,99161.0,0.202803]
[1737961494578,0.05839,99162.0,99161.0,0.302803]
[1737961494767,0.05839,99162.0,99161.0,0.101]
[1737961494969,0.05839,99162.0,99161.0,0.001]
[1737961498178,0.201815,99155.0,99150.0,0.00015133]
[1737961498374,0.05839,99162.0,99150.0,0.00015133]
[1737961498581,0.05839,99162.0,99160.0,0.301804]
[1737961499271,0.04839,99162.0,99160.0,0.301804]
[1737961499774,0.04839,99162.0,99149.0,0.3214]
[1737961499775,0.04839,99162.0,99149.0,0.201826]
[1737961499981,0.3608,99161.0,99150.0,0.201823]
[1737961500182,0.3608,99161.0,99148.0,0.34495533]
[1737961500984,0.3608,99161.0,99160.0,0.001]
[1737961501282,0.04933,99162.0,99160.0,0.202805]
[1737961501499,0.08781331,99174.0,99173.0,0.201778]
[1737961501789,0.3608,99191.0,99169.0,0.3608]
[1737961501978,0.36132001,99201.0,99193.0,0.201738]
[1737961502182,0.3608,99212.0,99188.0,0.3608]
[1737961502382,0.00056001,99219.0,99174.0,0.050444]
[1737961502383,0.00056001,99219.0,99206.0,0.3608]
[1737961502685,0.3608,99250.0,99231.0,0.201659]
[1737961502985,0.3608,99238.0,99220.0,0.20679228]
[1737961503187,0.3608,99238.0,99210.0,0.20679228]
[1737961503188,0.201681,99221.0,99210.0,0.20679228]
[1737961503378,0.3608,99219.0,99207.0,0.00151201]
[1737961503578,0.20169,99217.0,99207.0,0.00151201]
[1737961503775,0.00015117,99223.0,99207.0,0.00151201]
[1737961503978,0.00015117,99223.0,99221.0,0.20168]
[1737961504180,0.00015117,99223.0,99213.0,0.20679228]
[1737961504578,0.00015117,99223.0,99221.0,0.20168]
[1737961505286,0.00115117,99223.0,99221.0,0.20168]
[1737961505488,0.3608,99253.0,99221.0,0.02019993]
[1737961505489,0.3608,99245.0,99221.0,0.02019993]
[1737961505787,0.3608,99245.0,99230.0,0.20679228]
[1737961505982,0.19506319,99243.0,99230.0,0.20679228]
[1737961506178,0.3608,99245.0,99222.0,0.201678]
[1737961506491,0.3608,99245.0,99220.0,0.20679228]
[1737961506492,0.201653,99235.0,99220.0,0.40847428]
[1737961506685,0.201653,99235.0,99224.0,0.00015117]
[1737961507384,0.3608,99230.0,99224.0,0.00015117]
[1737961507690,0.3608,99227.0,99224.0,0.00015117]
[1737961508890,0.3618,99227.0,99224.0,0.00015117]
[1737961509580,0.201671,99226.0,99224.0,0.00015117]
[1737961509886,0.3638,99227.0,99224.0,0.00015117]
[1737961510083,0.003,99227.0,99225.0,0.201672]
[1737961510792,0.003,99227.0,99226.0,0.01547808]
[1737961511288,0.00015082,99243.0,99226.0,0.01547808]
[1737961511496,0.00015082,99243.0,99224.0,0.00015117]
[1737961511686,0.3608,99236.0,99225.0,0.0154703]
[1737961511882,0.3608,99236.0,99226.0,0.01571952]
[1737961512193,0.3608,99228.0,99224.0,0.00015117]
[1737961512388,0.36886,99236.0,99224.0,0.00015117]
[1737961512782,0.3608,99225.0,99224.0,0.00015117]
[1737961513087,0.562473,99225.0,99224.0,0.00015117]
[1737961513289,0.562473,99225.0,99190.0,0.20679228]
[1737961513290,0.6608,99225.0,99190.0,0.20679228]
[1737961513484,0.3608,99208.0,99180.0,0.20679228]
[1737961513687,0.3608,99194.0,99185.0,0.201753]
[1737961513991,0.3608,99199.0,99190.0,0.20679228]
[1737961515393,0.40112,99199.0,99190.0,0.20679228]
[1737961515596,0.40112,99199.0,99190.0,0.20979228]
[1737961515902,0.40112,99199.0,99194.0,0.201735]
[1737961516591,0.01008,99198.0,99194.0,0.22135903]
[1737961516988,0.01008,99198.0,99196.0,0.20173]
[1737961519089,0.01814,99198.0,99196.0,0.20173]
[1737961519396,0.0887,99198.0,99196.0,0.20373]
[1737961519590,0.0887,99198.0,99196.0,0.006]
[1737961519788,0.3608,99197.0,99185.0,0.00015117]
[1737961519989,0.201775,99175.0,99160.0,0.20679228]
[1737961520290,0.562552,99186.0,99160.0,0.20679228]
[1737961520490,0.3608,99186.0,99170.0,0.20679228]
[1737961520684,0.3608,99186.0,99179.0,0.201764]
[1737961520990,0.3608,99186.0,99170.0,0.20679228]
[1737961521196,0.3608,99186.0,99173.0,0.00166373]
[1737961521399,0.3608,99186.0,99180.0,0.201763]
[1737961521695,0.3608,99186.0,99184.0,0.201755]
[1737961521880,0.00015125,99192.0,99185.0,0.3608]
[1737961522084,0.00015125,99192.0,99191.0,0.201742]
[1737961522285,0.3608,99217.0,99216.0,0.201691]
[1737961522484,0.00806,99236.0,99215.0,0.3608]
[1737961522685,0.00806,99236.0,99231.0,0.201659]
[1737961522894,0.00806,99236.0,99226.0,0.20679228]
[1737961523094,0.00806,99236.0,99234.0,0.201653]
[1737961524392,0.00806,99236.0,99234.0,0.22162071]
[1737961524696,0.01106,99236.0,99234.0,0.22162071]
[1737961525198,0.00806,99236.0,99234.0,0.22162071]
[1737961525396,0.01206,99236.0,99234.0,0.22262071]
[1737961525782,0.01506,99236.0,99234.0,0.001]
[1737961526294,0.201652,99235.0,99234.0,0.001]
[1737961526598,0.01506,99236.0,99234.0,0.001]
[1737961527590,0.37586,99236.0,99225.0,0.00015117]
[1737961527795,0.004,99235.0,99234.0,0.001]
[1737961528495,0.01506,99236.0,99234.0,0.001]
[1737961528696,0.201652,99235.0,99234.0,0.001]
[1737961528893,0.204652,99235.0,99234.0,0.001]
[1737961529096,0.208652,99235.0,99234.0,0.001]
[1737961529294,0.201666,99229.0,99225.0,0.00015117]
[1737961529493,0.3608,99226.0,99225.0,0.00015117]
[1737961529898,0.004,99235.0,99225.0,0.00015117]
[1737961530398,0.004,99235.0,99232.0,0.201658]
[1737961530696,0.004,99235.0,99225.0,0.00015117]
[1737961531000,0.009,99236.0,99234.0,0.001]
[1737961531506,0.003,99236.0,99234.0,0.201653]
[1737961531698,0.007,99235.0,99234.0,0.201653]
[1737961532103,0.007,99235.0,99232.0,0.001]
[1737961532804,0.01,99236.0,99234.0,0.202654]
[1737961533503,0.003,99235.0,99234.0,0.202654]
[1737961534004,0.003,99235.0,99234.0,0.22254374]
[1737961534904,0.01,99235.0,99234.0,0.22154374]
[1737961535101,0.007,99235.0,99234.0,0.22154374]
[1737961535606,0.007,99235.0,99234.0,0.22254374]
[1737961535803,0.35226584,99236.0,99234.0,0.02088974]
[1737961536000,0.003,99235.0,99225.0,0.00015117]
[1737961536301,0.01,99235.0,99234.0,0.001]
[1737961536603,0.201684,99220.0,99204.0,0.201715]
[1737961536903,0.201705,99210.0,99202.0,0.00056]
[1737961537104,0.201746,99189.0,99170.0,0.20679228]
[1737961537400,0.201746,99189.0,99164.0,0.54228]
[1737961537401,0.3608,99186.0,99173.0,0.02202124]
[1737961537698,0.40112,99186.0,99176.0,0.201772]
[1737961538091,0.3608,99177.0,99173.0,0.00151248]
[1737961538297,0.3608,99177.0,99170.0,0.00015117]
[1737961538496,0.3608,99174.0,99147.0,0.00151293]
[1737961538697,0.3608,99157.0,99147.0,0.00151293]
[1737961539300,0.201816,99155.0,99147.0,0.00151293]
[1737961539499,0.201829,99148.0,99147.0,0.00151293]
[1737961539900,0.201829,99148.0,99147.0,0.00251293]
[1737961540907,0.201841,99142.0,99141.0,1e-08]
[1737961541116,0.41126,99142.0,99130.0,0.23955673]
[1737961541313,0.201878,99124.0,99115.0,0.00151342]
[1737961541607,0.562678,99124.0,99115.0,0.00151342]
[1737961541803,0.3608,99124.0,99122.0,0.201881]
[1737961542000,0.3608,99131.0,99115.0,0.00151342]
[1737961542001,0.3608,99139.0,99138.0,0.20185]
[1737961543411,0.00015133,99148.0,99144.0,0.201836]
[1737961543603,0.201835,99146.0,99130.0,0.201866]
[1737961543801,0.3608,99140.0,99129.0,0.2919905]
[1737961544013,0.3608,99140.0,99134.0,0.201857]
[1737961544799,0.00015133,99148.0,99140.0,0.201845]
[1737961545005,0.00015133,99148.0,99143.0,0.201839]
[1737961545200,0.00015133,99148.0,99138.0,0.004]
[1737961545404,0.20198233,99148.0,99138.0,0.004]
[1737961545704,0.00015133,99148.0,99138.0,0.001]
[1737961546009,0.00015133,99148.0,99134.0,0.02210819]
[1737961546010,0.00015133,99148.0,99140.0,0.003]
[1737961546208,0.00015133,99148.0,99143.0,0.005]
[1737961547197,0.00015133,99148.0,99147.0,0.201831]
[1737961547508,0.3608,99152.0,99143.0,0.005]
[1737961547715,0.3608,99144.0,99143.0,0.005]
[1737961548005,0.3608,99144.0,99138.0,0.001]
[1737961548211,0.3608,99144.0,99138.0,0.004]
[1737961548420,0.3608,99144.0,99138.0,0.003]
[1737961548613,0.36886,99144.0,99143.0,0.003]
[1737961548909,0.36886,99144.0,99143.0,0.012]
[1737961549099,0.00806,99144.0,99143.0,0.012]
[1737961549302,0.00806,99144.0,99138.0,0.3608]
[1737961549496,0.00806,99144.0,99138.0,0.3648]
[1737961549703,0.00806,99144.0,99142.0,0.201841]
[1737961550004,0.00806,99144.0,99143.0,0.001]
[1737961552409,0.00806,99144.0,99143.0,0.002]
[1737961552796,0.00806,99144.0,99143.0,0.3628]
[1737961554014,0.3608,99171.0,99158.0,0.201809]
[1737961554604,0.3608,99171.0,99150.0,0.322]
[1737961554804,0.3608,99176.0,99151.0,0.3608]
[1737961555205,0.00015133,99173.0,99172.0,0.20178]
[1737961555616,0.3608,99186.0,99185.0,0.201754]
[1737961556810,0.3167,99219.0,99183.0,0.01646984]
[1737961556811,0.00015125,99195.0,99183.0,0.01646984]
[1737961557007,0.3608,99214.0,99190.0,0.3608]
[1737961557207,0.3608,99214.0,99200.0,0.2919905]
[1737961557410,0.3608,99224.0,99200.0,0.2919905]
[1737961557726,0.3608,99224.0,99200.0,0.6527905]
[1737961558015,0.3608,99216.0,99200.0,0.6527905]
[1737961558208,0.3608,99216.0,99206.0,0.20171]
[1737961558409,0.40111,99216.0,99206.0,0.20171]
[1737961559314,0.40111,99216.0,99213.0,0.201696]
[1737961559509,0.40411,99216.0,99214.0,0.201695]
[1737961559709,0.04431,99216.0,99214.0,0.201695]
[1737961560412,0.04531,99216.0,99214.0,0.201695]
[1737961561117,0.0472,99216.0,99215.0,0.3608]
[1737961561316,0.10364,99216.0,99214.0,0.201694]
[1737961561528,0.06829122,99216.0,99214.0,0.201694]
[1737961561716,0.07029122,99216.0,99214.0,0.21788686]
[1737961562122,0.14766207,99237.0,99214.0,0.01619286]
[1737961562322,0.14766207,99237.0,99213.0,0.9573]
[1737961562323,0.14766207,99237.0,99229.0,0.201663]
[1737961562514,0.3608,99232.0,99213.0,0.64876]
[1737961562719,0.3608,99232.0,99219.0,0.201684]
[1737961562920,0.34226605,99232.0,99219.0,0.201684]
[1737961563313,0.34226605,99232.0,99213.0,0.64876]
[1737961563314,0.34226605,99232.0,99220.0,0.201681]
[1737961563514,0.34226605,99232.0,99216.0,0.00015117]
[1737961563515,0.14966207,99237.0,99218.0,0.201687]
[1737961563716,0.002,99232.0,99226.0,0.201669]
[1737961564218,0.002,99232.0,99216.0,0.00015117]
[1737961564415,0.002,99232.0,99229.0,0.201664]
[1737961564725,0.002,99232.0,99216.0,0.00015117]
[1737961564726,0.002,99232.0,99224.0,0.201674]
[1737961565216,0.003,99232.0,99216.0,0.00015117]
[1737961565519,0.3608,99229.0,99218.0,0.201687]
[1737961565922,0.22452228,99221.0,99216.0,0.00015117]
[1737961566110,0.22452228,99221.0,99220.0,0.201683]
[1737961566920,0.22452228,99221.0,99220.0,0.562483]
[1737961567225,0.002,99232.0,99220.0,0.37621625]
[1737961567418,0.002,99232.0,99226.0,0.20167]
[1737961567619,0.002,99232.0,99227.0,0.201667]
[1737961567819,0.3608,99231.0,99220.0,0.36136]
[1737961568217,0.001,99229.0,99220.0,0.3608]
[1737961568417,0.201679,99222.0,99220.0,0.3608]
[1737961568623,0.001,99229.0,99220.0,0.3608]
[1737961569028,0.001,99229.0,99227.0,0.201668]
[1737961569227,0.35132634,99242.0,99229.0,0.201663]
[1737961569528,0.001,99231.0,99229.0,0.201663]
[1737961569917,0.001,99231.0,99223.0,0.201676]
[1737961570325,0.3608,99224.0,99216.0,0.00015117]